fUSD/lending_fUSD_20240701
["ID","MTS","AMOUNT","RATE_DAILY","PERIOD"]
[330802053,1719808246667,-860.27070139,0.00019999,2]
[330802054,1719808246676,-860.27070139,0.00019999,2]
[330802055,1719808246685,-860.27070139,0.00019999,2]
[330802056,1719808246695,-860.27070139,0.00019999,2]
[330802057,1719808246704,-860.27070139,0.00019999,2]
[330802058,1719808246713,-860.27070139,0.00019999,2]
[330802059,1719808246723,-860.27070139,0.00019999,2]
[330802060,1719808246732,-860.27070139,0.00019999,2]
[330802061,1719808246741,-860.27070139,0.00019999,2]
[330802062,1719808246751,-860.27070139,0.00019999,2]
[330802063,1719808246762,-860.27070139,0.00019999,2]
[330802064,1719808246772,-860.27070139,0.00019999,2]
[330802065,1719808246782,-860.27070139,0.00019999,2]
[330802066,1719808246792,-860.27070139,0.00019999,2]
[330802067,1719808246802,-860.27070139,0.00019999,2]
[330802068,1719808246812,-860.27070139,0.00019999,2]
[330802069,1719808246822,-860.27070139,0.00019999,2]
[330802070,1719808246832,-860.27070139,0.00019999,2]
[330802071,1719808246841,-860.27070139,0.00019999,2]
[330802072,1719808246850,-860.27070139,0.00019999,2]
[330802073,1719808246860,-860.27070139,0.00019999,2]
[330802074,1719808246870,-860.27070139,0.00019999,2]
[330802075,1719808246879,-860.27070139,0.00019999,2]
[330802076,1719808246888,-860.27070139,0.00019999,2]
[330802077,1719808246898,-860.27070139,0.00019999,2]
[330802078,1719808246907,-860.27070139,0.00019999,2]
[330802079,1719808246916,-860.27070139,0.00019999,2]
[330802080,1719808246926,-860.27070139,0.00019999,2]
[330802081,1719808246936,-860.27070139,0.00019999,2]
[330802082,1719808246945,-860.27070139,0.00019999,2]
[330802083,1719808246954,-860.27070139,0.00019999,2]
[330802084,1719808246963,-860.27070139,0.00019999,2]
[330802085,1719808246972,-860.27070139,0.00019999,2]
[330802086,1719808246982,-860.27070139,0.00019999,2]
[330802087,1719808246993,-860.27070139,0.00019999,2]
[330802088,1719808247002,-860.27070139,0.00019999,2]
[330802089,1719808247011,-268.94947721,0.00019999,2]
[330802090,1719808247021,-842.34839511,0.00019999,2]
[330802091,1719808247031,-842.34839511,0.00019999,2]
[330802092,1719808247040,-842.34839511,0.00019999,2]
[330802093,1719808247051,-842.34839511,0.00019999,2]
[330802094,1719808247061,-842.34839511,0.00019999,2]
[330802095,1719808247071,-842.34839511,0.00019999,2]
[330802096,1719808247080,-842.34839511,0.00019999,2]
[330802097,1719808247088,-842.34839511,0.00019999,2]
[330802098,1719808247097,-842.34839511,0.00019999,2]
[330802099,1719808247106,-842.34839511,0.00019999,2]
[330802100,1719808247115,-842.34839511,0.00019999,2]
[330802101,1719808247125,-842.34839511,0.00019999,2]
[330802102,1719808247135,-842.34839511,0.00019999,2]
[330802103,1719808247147,-842.34839511,0.00019999,2]
[330802104,1719808247162,-842.34839511,0.00019999,2]
[330802105,1719808247171,-842.34839511,0.00019999,2]
[330802106,1719808247182,-842.34839511,0.00019999,2]
[330802107,1719808247193,-842.34839511,0.00019999,2]
[330802108,1719808247203,-842.34839511,0.00019999,2]
[330802109,1719808247213,-842.34839511,0.00019999,2]
[330802110,1719808247224,-842.34839511,0.00019999,2]
[330802111,1719808247235,-842.34839511,0.00019999,2]
[330802112,1719808247248,-842.34839511,0.00019999,2]
[330802113,1719808247259,-842.34839504,0.00019999,2]
[330802114,1719808247268,-483497.33825023,0.0002,7]
[330802115,1719808247509,-781.00638684,0.0002,7]
[330802116,1719808247838,-233.37226566,0.00018,2]
[330802117,1719808247848,-233.37226566,0.00018,2]
[330802118,1719808247857,-233.37226566,0.00018,2]
[330802119,1719808247866,-233.37226566,0.00018,2]
[330802120,1719808247875,-50.37995767,0.00018,2]
[330802121,1719808248189,-182.99230799,0.00018,2]
[330802122,1719808248200,-233.37226566,0.00018,2]
[330802123,1719808248210,-233.37226566,0.00018,2]
[330802124,1719808248219,-233.37226566,0.00018,2]
[330802125,1719808248229,-128.56330213,0.0001951,2]
[330802126,1719808248246,-399.62669787,0.0001951,2]
[330802127,1719808248256,-1037.93932126,0.0001999,2]
[330802128,1719808248267,-618.3903605,0.0002,7]
[330802129,1719808248395,-585.22668101,0.0002,7]
[330802130,1719808248422,-1450.04333375,0.0002,7]
[330802131,1719808248432,-1830.2241266,0.0002,7]
[330802132,1719808248445,-2211.876,0.0002,7]
[330802133,1719808316229,-200000.0,0.000225,120]
[330802135,1719808338023,-200000.0,0.000225,120]
[330802137,1719808350350,-200000.0,0.000225,120]
[330802140,1719808424978,2659992.16265959,0.00014,2]
[330802141,1719808465830,547916.38730347,0.00013999,2]
[330802142,1719808472635,47522.54243619,0.0001387,2]
[330802143,1719808473275,528.62382473,6.94e-05,2]
[330802144,1719808524998,520.64721014,0.0001,2]
[330802145,1719808561283,244.01719771,0.000101,2]
[330802146,1719808598298,18227.5234383,0.0001,2]
[330802147,1719808599351,9131.86816505,0.00013,2]
[330802148,1719808607873,1299.26189945,0.0001251,2]
[330802149,1719808753797,155.1125049,0.0001251,2]
[330802150,1719808757333,155.20381113,0.0001251,2]
[330802151,1719808768269,440.83610235,0.0001251,2]
[330802152,1719808769304,4042.57994754,0.0001251,2]
[330802153,1719808789818,167.57788981,0.0001251,2]
[330802154,1719808804671,4625.16741665,0.0001251,2]
[330802155,1719808852170,19820.96017953,0.0001251,2]
[330802156,1719808883316,206.99808607,0.0001251,2]
[330802157,1719808901680,4625.16741665,0.0001251,2]
[330802158,1719808928785,155.0,0.0001251,2]
[330802159,1719808938932,9019.63239359,0.00013999,2]
[330802160,1719808942171,19820.96017953,0.0001251,2]
[330802161,1719808963162,181.13553946,0.0001251,2]
[330802162,1719808965782,552.51494431,0.0001251,2]
[330802163,1719808993780,181.13553946,0.0001251,2]
[330802164,1719809012693,2383.67453782,0.0001251,2]
[330802165,1719809024680,19820.96017953,0.0001251,2]
[330802166,1719809025803,155.0,0.0001251,2]
[330802167,1719809099701,19820.96017953,0.0001251,2]
[330802168,1719809123795,155.0,0.0001251,2]
[330802169,1719809146028,690.82314876,0.00013999,2]
[330802170,1719809194815,474.28975858,0.00013999,2]
[330802171,1719809209938,308.41386125,0.00013999,2]
[330802172,1719809215973,169.68722667,0.00012,3]
[330802173,1719809235201,19820.96017953,0.00013999,2]
[330802174,1719809325219,1298.95415002,0.00013999,2]
[330802175,1719809394779,685.66399757,0.00013999,2]
[330802192,1719809431702,-349.53232163,0.00014099,2]
[330802193,1719809431711,-93.16267837,0.00014399,2]
[330802194,1719809431749,-68.02767729,0.00014399,2]
[330802195,1719809431759,-150.0,0.00015068,2]
[330802196,1719809431768,-600.0,0.00015102,2]
[330802197,1719809431777,-500.0,0.00015102,2]
[330802198,1719809431787,-28754.5462,0.000154,2]
[330802199,1719809431797,-66239.2004,0.000154,2]
[330802200,1719809431807,-7594.5562,0.000154,2]
[330802201,1719809431816,-1000.0,0.000154,2]
[330802202,1719809431827,-4941.8,0.00015521,2]
[330802203,1719809431836,-290.23,0.00015521,2]
[330802204,1719809431845,-161.19035565,0.00015963,2]
[330802205,1719809431855,-587.03954645,0.00016172,2]
[330802206,1719809431864,-7619.19,0.00016699,2]
[330802207,1719809431873,-500.0,0.00016746,2]
[330802208,1719809431883,-19606.28873825,0.00016808,2]
[330802209,1719809431892,-345.07,0.0001747,2]
[330802210,1719809431901,-889.41,0.00017523,3]
[330802211,1719809431911,-161.19035565,0.00017526,2]
[330802212,1719809431920,-3147.47169142,0.00017526,2]
[330802213,1719809431930,-725.48288605,0.00017533,2]
[330802214,1719809431942,-4274.51711395,0.00017533,2]
[330802215,1719809431953,-329.52,0.00017567,2]
[330802216,1719809431962,-1026.53,0.0001762,2]
[330802217,1719809431971,-23890.0,0.00017621,2]
[330802218,1719809431981,-8398.82,0.00017626,2]
[330802219,1719809431990,-1842.51,0.00017639,2]
[330802220,1719809432000,-250.0,0.00017643,2]
[330802221,1719809432009,-250.0,0.00017658,2]
[330802222,1719809432019,-10000.0,0.00017663,2]
[330802223,1719809432029,-200.0,0.00017724,2]
[330802225,1719809432039,-199.11,0.00017725,2]
[330802227,1719809432048,-3652.04,0.00017746,2]
[330802229,1719809432057,-170.36,0.00017765,2]
[330802231,1719809432068,-290.23,0.00017785,2]
[330802232,1719809432077,-178.61,0.00017801,2]
[330802233,1719809432086,-200.0,0.00017842,2]
[330802234,1719809432096,-341.21,0.00017876,2]
[330802235,1719809432107,-2791.42364177,0.00017889,2]
[330802236,1719809432117,-500.0,0.000179,2]
[330802237,1719809432127,-500.0,0.000179,2]
[330802238,1719809432144,-502.0,0.000179,2]
[330802239,1719809432155,-500.0,0.000179,2]
[330802240,1719809432165,-500.0,0.000179,2]
[330802241,1719809432174,-500.0,0.000179,2]
[330802242,1719809432184,-500.0,0.000179,2]
[330802243,1719809432193,-500.0,0.000179,2]
[330802244,1719809432203,-500.0,0.000179,2]
[330802245,1719809432212,-500.0,0.000179,2]
[330802246,1719809432222,-500.0,0.000179,2]
[330802247,1719809432231,-500.0,0.000179,2]
[330802248,1719809432241,-500.0,0.000179,2]
[330802249,1719809432252,-500.0,0.000179,2]
[330802250,1719809432262,-500.0,0.000179,2]
[330802251,1719809432271,-500.0,0.000179,2]
[330802252,1719809432281,-500.0,0.000179,2]
[330802253,1719809432290,-500.0,0.000179,2]
[330802254,1719809432301,-500.0,0.000179,2]
[330802255,1719809432310,-587.0,0.000179,2]
[330802256,1719809432320,-170.36,0.00017919,2]
[330802257,1719809432330,-312.92058154,0.00018,2]
[330802258,1719809432340,-1463.98162491,0.00018,2]
[330802259,1719809432350,-1000.0,0.00018013,2]
[330802260,1719809432359,-3147.47169133,0.00018068,2]
[330802261,1719809432368,-170.36,0.00018074,2]
[330802262,1719809432378,-2214.63416499,0.00018081,2]
[330802263,1719809432388,-180.88,0.00018158,2]
[330802264,1719809432397,-170.36,0.00018228,2]
[330802265,1719809432406,-170.36,0.00018382,2]
[330802266,1719809432416,-152.75625899,0.00018522,2]
[330802267,1719809432425,-170.36,0.00018536,2]
[330802268,1719809432434,-152.28709696,0.00018542,2]
[330802269,1719809432444,-208.54836455,0.00018549,2]
[330802270,1719809432453,-3147.47169133,0.00018609,2]
[330802271,1719809432462,-213.52504076,0.00018671,2]
[330802272,1719809432471,-183.7,0.00018688,2]
[330802273,1719809432481,-170.36,0.00018691,2]
[330802274,1719809432489,-151.02465677,0.00018705,2]
[330802275,1719809432501,-208.54836455,0.0001872,2]
[330802276,1719809432511,-153.41251731,0.00018736,2]
[330802277,1719809432520,-153.3118478,0.00018741,2]
[330802278,1719809432529,-154.86627898,0.00018745,2]
[330802279,1719809432538,-1398.36172563,0.00018759,2]
[330802280,1719809432548,-152.75625899,0.00018817,2]
[330802281,1719809432558,-315.00352005,0.00018835,2]
[330802282,1719809432572,-310.0,0.00018835,2]
[330802283,1719809432582,-529.02288661,0.00018835,2]
[330802284,1719809432592,-260.43057533,0.00018835,2]
[330802285,1719809432603,-2317.27,0.00018849,30]
[330802286,1719809432612,-152.28709696,0.0001886,2]
[330802287,1719809432622,-213.52504076,0.00018863,2]
[330802288,1719809432632,-309.98464011,0.00018864,2]
[330802289,1719809432645,-292.44922392,0.00018864,2]
[330802290,1719809432654,-155.0,0.00018864,2]
[330802291,1719809432664,-526.28304125,0.00018899,2]
[330802292,1719809432673,-208.54836455,0.00018913,2]
[330802293,1719809432683,-333.79757117,0.00018919,2]
[330802294,1719809432692,-154.86627898,0.00018953,2]
[330802295,1719809432702,-213.52504076,0.00018986,2]
[330802296,1719809432712,-312.0,0.00019,2]
[330802297,1719809432721,-300.0,0.00019,2]
[330802298,1719809432732,-213.52504076,0.00019064,2]
[330802299,1719809432742,-152.9902248,0.00019065,2]
[330802300,1719809432753,-266.29859701,0.00019069,2]
[330802301,1719809432762,-716.40696563,0.00019098,2]
[330802302,1719809432772,-3147.47169133,0.00019151,2]
[330802303,1719809432781,-150.0,0.00019178,2]
[330802304,1719809432792,-250.0,0.00019178,2]
[330802305,1719809432801,-29631.0,0.00019212,2]
[330802306,1719809432811,-150.45691155,0.00019266,2]
[330802307,1719809432820,-1099.27999902,0.00019304,2]
[330802308,1719809432830,-2100.0,0.00019313,2]
[330802309,1719809432840,-151.02465677,0.00019337,2]
[330802310,1719809432850,-154.94398226,0.00019343,2]
[330802311,1719809432862,-227.0716558,0.00019352,2]
[330802312,1719809432871,-374.16526931,0.00019354,2]
[330802313,1719809432881,-155.74222071,0.00019355,2]
[330802314,1719809432891,-166.66666668,0.00019387,2]
[330802315,1719809432900,-166.66666668,0.0001939,2]
[330802316,1719809432910,-213.52504076,0.0001942,2]
[330802317,1719809432919,-208.54836455,0.00019424,2]
[330802318,1719809432928,-208.54836455,0.00019451,2]
[330802319,1719809432938,-154.86627898,0.00019466,2]
[330802320,1719809432948,-332.01755418,0.00019565,2]
[330802321,1719809432957,-152.28709696,0.00019567,2]
[330802322,1719809432967,-152.66657847,0.00019613,2]
[330802323,1719809432976,-153.3118478,0.00019647,2]
[330802324,1719809432986,-150.0,0.00019683,2]
[330802325,1719809432995,-3147.47169133,0.00019692,2]
[330802326,1719809433005,-150.45691155,0.00019697,2]
[330802327,1719809433014,-292.27590029,0.00019725,2]
[330802328,1719809433023,-153.41251731,0.00019756,2]
[330802329,1719809433032,-509.0,0.00019756,2]
[330802330,1719809433041,-609.83079,0.000198,2]
[330802331,1719809433051,-208.54836455,0.00019821,2]
[330802332,1719809433060,-500.0,0.00019839,2]
[330802333,1719809433068,-200.0,0.00019839,2]
[330802334,1719809433077,-151.04669053,0.00019843,2]
[330802335,1719809433087,-154.86627898,0.00019866,2]
[330802336,1719809433095,-215.73840732,0.000199,2]
[330802337,1719809433104,-155.94167811,0.000199,2]
[330802338,1719809433310,-444.9185,0.000199,2]
[330802339,1719809433377,-663.13643836,0.000199,2]
[330802340,1719809433400,-5692.49647672,0.000199,2]
[330802341,1719809433411,-317.00666852,0.000199,2]
[330802342,1719809433420,-317.31697354,0.000199,2]
[330802343,1719809433428,-1007.0,0.000199,2]
[330802344,1719809433438,-3703.102967,0.000199,2]
[330802345,1719809433447,-153.41251731,0.00019903,2]
[330802346,1719809433456,-151.04669053,0.00019968,2]
[330802347,1719809433466,-1541.0,0.0001997,30]
[330802348,1719809433475,-1541.0,0.0001997,30]
[330802349,1719809433484,-1541.0,0.0001998,30]
[330802350,1719809433494,-1541.0,0.0001998,30]
[330802351,1719809433503,-213.52504076,0.00019988,2]
[330802352,1719809433512,-1541.0,0.0001999,30]
[330802353,1719809433521,-1541.0,0.0001999,30]
[330802354,1719809433531,-153.44,0.0001999,2]
[330802355,1719809433540,-153.44,0.0001999,2]
[330802356,1719809433551,-153.44,0.0001999,2]
[330802357,1719809433563,-153.44,0.0001999,2]
[330802358,1719809433574,-153.44,0.0001999,2]
[330802359,1719809433583,-153.44,0.0001999,2]
[330802360,1719809433592,-153.44,0.0001999,2]
[330802361,1719809433603,-445.67202854,0.00019997,2]
[330802362,1719809433612,-2000.0,0.00019999,2]
[330802363,1719809433622,-238.78194141,0.0002,5]
[330802364,1719809433631,-116701.41581571,0.0002,2]
[330802365,1719809433651,-670.78694448,0.0002,2]
[330802366,1719809433665,-1315.28468099,0.0002,2]
[330802367,1719809433676,-4943.83845254,0.0002,2]
[330802368,1719809433702,-389.00967572,0.0002,7]
[330802369,1719809433713,-538.30041497,0.0002,7]
[330802370,1719809433725,-1035.96793328,0.0002,7]
[330802371,1719809433737,-2579.13024288,0.0002,7]
[330802372,1719809433754,-588.74678369,0.0002,7]
[330802373,1719809433766,-2009.17611856,0.0002,7]
[330802378,1719809437594,-2757.43078158,0.00017526,2]
[330802380,1719809437604,-166.284,0.00017663,2]
[330802382,1719809437615,-166.284,0.0001859,2]
[330802384,1719809437624,-166.284,0.00019615,2]
[330802386,1719809437634,-1841.97752247,0.0002,7]
[330802388,1719809437648,-13425.46661546,0.0002,7]
[330802390,1719809437659,-35821.3206051,0.0002,7]
[330802391,1719809437671,-959.26636,0.0002,7]
[330802400,1719809437769,-1242.44162706,0.0002,7]
[330802403,1719809437793,-1605.09210892,0.0002,7]
[330802406,1719809437818,-616.0,0.0002,7]
[330802408,1719809437830,-23876.33875266,0.0002,7]
[330802410,1719809437841,-280.65263567,0.0002,7]
[330802412,1719809437856,-339.0480117,0.0002,7]
[330802413,1719809437872,-119299.2539394,0.0002,7]
[330802414,1719809437887,-1063.71192717,0.0002,7]
[330802415,1719809437899,-302.52178472,0.0002,7]
[330802416,1719809437910,-621.84684608,0.0002,7]
[330802417,1719809437921,-1520.60108001,0.0002,7]
[330802425,1719809439748,-2757.43078151,0.00018068,2]
[330802426,1719809439759,-773.28078412,0.0002,7]
[330802427,1719809439771,-17774.15880692,0.0002,7]
[330802428,1719809439785,-304.184176,0.0002,7]
[330802429,1719809439797,-1048.582763,0.0002,7]
[330802430,1719809439822,-384.644286,0.0002,7]
[330802431,1719809439834,-468.39336769,0.0002,7]
[330802432,1719809439858,-1586.57316644,0.0002,7]
[330802433,1719809440076,-1079.42177255,0.0002,7]
[330802434,1719809440088,-1300.47673645,0.0002,7]
[330802435,1719809440109,-33625.82427313,0.0002,7]
[330802436,1719809440120,-38831.90504504,0.0002,7]
[330802437,1719809440132,-45796.80648819,0.0002,7]
[330802438,1719809440144,-20745.12160363,0.0002,7]
[330802439,1719809440155,-114117.883712,0.0002,7]
[330802440,1719809440167,-527.39556223,0.0002,7]
[330802444,1719809442766,-627.546,0.0002,7]
[330802445,1719809442778,-1113.8701207,0.0002,7]
[330802446,1719809442884,-274495.08640943,0.0002,7]
[330802447,1719809442925,-298.93134934,0.0002,7]
[330802448,1719809442937,-2347.41315206,0.0002,7]
[330802449,1719809443120,-3876.71383284,0.0002,7]
[330802450,1719809443131,-885.5554466,0.0002,7]
[330802479,1719809445928,-2757.43078151,0.00018609,2]
[330802481,1719809445938,-9401.47614953,0.0002,7]
[330802483,1719809445949,-1203.69256522,0.0002,7]
[330802485,1719809446077,-31858.479336,0.0002,7]
[330802486,1719809499689,200.71978544,0.00013999,2]
[330802487,1719809561519,301.41461873,0.00013999,2]
[330802488,1719809569776,20310.318509,0.00013999,2]
[330802489,1719809588108,302.3304855,0.00013999,2]
[330802490,1719809659351,164910.04377656,0.00013999,2]
[330802491,1719809732492,-200000.0,0.000225,120]
[330802493,1719809747785,6666.92380263,0.00013999,2]
[330802501,1719810391066,1398.36172563,0.00013999,2]
[330802503,1719810421075,1398.36172563,0.00013999,2]
[330802507,1719810440514,600.13630834,0.00013999,2]
[330802508,1719810442997,232.68818604,0.00013999,2]
[330802510,1719810502359,266.29859701,0.00013999,2]
[330802511,1719810524483,190.61504152,0.00013999,2]
[330802512,1719810599694,300.37937002,0.00013999,2]
[330802513,1719810606625,5596.00864109,0.00013999,2]
[330802514,1719810608560,227.0716558,0.00013999,2]
[330802515,1719810610868,552.49402152,0.00013999,2]
[330802516,1719810615311,199.22790588,0.00013999,2]
[330802517,1719810621001,323.69,0.00013418,2]
[330802518,1719810621029,227.0716558,0.00013999,2]
[330802525,1719810631948,-7101.320094,0.00014426,2]
[330802526,1719810631961,-242.56963504,0.00014498,2]
[330802527,1719810631972,-57.43036496,0.00014498,2]
[330802528,1719810631982,-294.46819358,0.00014724,2]
[330802529,1719810632086,-798.58048974,0.00014724,2]
[330802530,1719810632098,-2695.04311048,0.00014724,2]
[330802531,1719810632132,-8675.8729062,0.00014724,2]
[330802532,1719810632141,-180.0,0.00014898,2]
[330802533,1719810632151,-2598.51441568,0.00015,2]
[330802534,1719810632173,-367.64532289,0.00015,2]
[330802535,1719810632184,-628.42,0.00015,2]
[330802536,1719810632325,-1405.42026143,0.00015,2]
[330802537,1719810632336,-4567.76836852,0.00015114,2]
[330802538,1719810632349,-1870.38996154,0.00015114,2]
[330802539,1719810632360,-562.43544538,0.00015114,2]
[330802540,1719810632372,-1094.89027509,0.00015114,2]
[330802541,1719810632384,-446.45853724,0.00015114,2]
[330802542,1719810632396,-18161.8967343,0.00015114,2]
[330802543,1719810632410,-29560.56631577,0.00015114,2]
[330802544,1719810632422,-180820.84672803,0.00015114,2]
[330802545,1719810632433,-24675.14347884,0.00015114,2]
[330802553,1719810637880,-514.78208379,0.00015114,2]
[330802554,1719810637944,-612.18240239,0.00015114,2]
[330802555,1719810638153,-638.55963103,0.00015114,2]
[330802556,1719810638166,-1587.81759761,0.00015114,2]
[330802557,1719810638177,-14284.03379696,0.00015114,2]
[330802615,1719810639972,-560.92338755,0.00015114,2]
[330802616,1719810639987,-321.5703708,0.00015114,2]
[330802617,1719810640028,-825.14433453,0.00015114,2]
[330802618,1719810640189,-132822.59055063,0.00015114,2]
[330802619,1719810640200,-2584.94135656,0.00015199,2]
[330802620,1719810640211,-157.91441962,0.00015287,2]
[330802621,1719810640221,-323.1874771,0.00015299,2]
[330802622,1719810640231,-461.65351825,0.00015335,2]
[330802623,1719810640241,-5576.84,0.00015335,2]
[330802624,1719810640251,-155.0,0.00015399,2]
[330802625,1719810640262,-717.57369311,0.00015535,2]
[330802626,1719810640272,-762.0,0.000156,2]
[330802627,1719810640282,-323.69,0.00015682,2]
[330802628,1719810640293,-420.0,0.00015875,2]
[330802629,1719810640303,-228.19,0.00015891,2]
[330802630,1719810640313,-250.0,0.00015955,2]
[330802631,1719810640324,-1461.56,0.00015955,2]
[330802632,1719810640333,-1000.0,0.00015983,2]
[330802633,1719810640344,-2584.94135654,0.00015999,2]
[330802634,1719810640354,-1398.36172563,0.00016172,2]
[330802635,1719810640364,-511.02,0.00016332,2]
[330802636,1719810640374,-183.7487189,0.00016369,2]
[330802637,1719810640385,-373302.5940095,0.00016379,2]
[330802638,1719810640395,-213.57300496,0.00016387,2]
[330802639,1719810640405,-355.42375596,0.00016487,2]
[330802640,1719810640414,-166.284,0.00016487,2]
[330802641,1719810640424,-1573.73584571,0.00016587,2]
[330802642,1719810640434,-530.50915068,0.00016687,2]
[330802643,1719810640444,-531.7,0.00016787,2]
[330802644,1719810640454,-2584.94135654,0.00016799,2]
[330802645,1719810640465,-265.91829802,0.00016808,2]
[330802646,1719810640475,-19813.39655712,0.00016968,2]
[330802647,1719810640485,-155.32991129,0.00016968,2]
[330802648,1719810640495,-181.59440179,0.00016968,2]
[330802649,1719810640510,-168.87,0.00017019,2]
[330802650,1719810640519,-1573.73584566,0.00017233,2]
[330802651,1719810640531,-355.4237559,0.00017248,2]
[330802652,1719810640542,-2659.9,0.00017259,2]
[330802653,1719810640552,-166.284,0.00017353,2]
[330802654,1719810640561,-1011.64476456,0.00017359,2]
[330802655,1719810640573,-530.50915066,0.0001749,2]
[330802656,1719810640584,-170.73,0.00017517,2]
[330802657,1719810640593,-199.11,0.0001752,2]
[330802658,1719810640604,-1881.4001,0.00017526,2]
[330802659,1719810640614,-2584.94135654,0.00017599,2]
[330802660,1719810640624,-526.28304125,0.000177,2]
[330802662,1719810640635,-1573.73584566,0.00017879,2]
[330802664,1719810640645,-500.0,0.000179,2]
[330802666,1719810640655,-500.0,0.000179,2]
[330802668,1719810640665,-500.0,0.000179,2]
[330802671,1719810640676,-500.0,0.000179,2]
[330802674,1719810640687,-500.0,0.000179,2]
[330802677,1719810640697,-500.0,0.000179,2]
[330802678,1719810640706,-500.0,0.000179,2]
[330802679,1719810640716,-500.0,0.000179,2]
[330802680,1719810640726,-500.0,0.000179,2]
[330802681,1719810640737,-500.0,0.000179,2]
[330802682,1719810640747,-500.0,0.000179,2]
[330802683,1719810640760,-500.0,0.000179,2]
[330802684,1719810640770,-500.0,0.000179,2]
[330802685,1719810640780,-559.0,0.000179,2]
[330802686,1719810640789,-323.69,0.00017946,2]
[330802687,1719810640799,-1000.0,0.00017981,2]
[330802688,1719810640809,-355.4237559,0.0001801,2]
[330802689,1719810640819,-200.0,0.00018016,2]
[330802690,1719810640829,-213.57300496,0.00018144,2]
[330802691,1719810640839,-530.50915066,0.00018294,2]
[330802692,1719810640849,-166.284,0.00018309,2]
[330802693,1719810640859,-2584.94135654,0.00018399,2]
[330802694,1719810640868,-151.02465677,0.00018522,2]
[330802695,1719810640878,-1573.73584566,0.00018525,2]
[330802696,1719810640888,-166.83869164,0.00018575,2]
[330802697,1719810640898,-166.83869164,0.00018585,2]
[330802698,1719810640908,-151.02465677,0.00018588,2]
[330802699,1719810640917,-166.83869164,0.00018632,2]
[330802700,1719810640927,-151.02465677,0.00018643,2]
[330802701,1719810640937,-155.81492388,0.00018665,2]
[330802702,1719810640947,-306.51806433,0.000187,2]
[330802703,1719810640961,-170.82003261,0.00018753,2]
[330802704,1719810640971,-166.83869164,0.00018755,2]
[330802705,1719810640980,-355.4237559,0.00018771,2]
[330802706,1719810640990,-166.6666667,0.00018777,2]
[330802707,1719810641002,-150.42510389,0.00018788,2]
[330802708,1719810641014,-166.83869164,0.00018806,2]
[330802709,1719810641023,-3018.27,0.00018849,30]
[330802710,1719810641036,-151.02465677,0.00018899,2]
[330802711,1719810641045,-153.44,0.000189,2]
[330802712,1719810641054,-170.82003261,0.00018953,2]
[330802713,1719810641064,-154.86627899,0.0001901,2]
[330802714,1719810641073,-716.40696563,0.00019091,2]
[330802715,1719810641083,-530.50915066,0.00019097,2]
[330802716,1719810641093,-153.41251731,0.00019105,2]
[330802717,1719810641103,-154.86627899,0.00019143,2]
[330802718,1719810641113,-1573.73584566,0.00019171,2]
[330802719,1719810641122,-233.33526776,0.00019178,2]
[330802720,1719810641132,-500.0,0.00019178,2]
[330802721,1719810641142,-545.65825346,0.00019178,2]
[330802722,1719810641151,-500.0,0.00019178,2]
[330802723,1719810641161,-500.0,0.00019178,2]
[330802724,1719810641170,-317.19188037,0.00019178,2]
[330802725,1719810641179,-500.0,0.00019178,2]
[330802726,1719810641189,-500.0,0.00019178,2]
[330802727,1719810641199,-500.0,0.00019178,2]
[330802728,1719810641208,-500.0,0.00019178,2]
[330802729,1719810641217,-500.0,0.00019178,2]
[330802730,1719810641227,-500.0,0.00019178,2]
[330802731,1719810641236,-500.0,0.00019178,2]
[330802732,1719810641246,-500.0,0.00019178,2]
[330802733,1719810641257,-500.0,0.00019178,2]
[330802734,1719810641267,-500.0,0.00019178,2]
[330802735,1719810641277,-500.0,0.00019178,2]